bitfinex/quotes_SOLUSD_20251025
["timestamp","ask_amount","ask_price","bid_price","bid_amount"]
[1761369203332,23.08,193.97,193.94,36.0]
[1761369203531,23.78,193.97,193.94,36.0]
[1761369203954,0.7,193.96,193.94,36.0]
[1761369204645,23.78,193.97,193.94,36.0]
[1761369205355,23.78,193.97,193.94,38.55761997]
[1761369207154,0.7,193.96,193.92,2.55761997]
[1761369207357,0.7,193.96,193.93,36.0]
[1761369208347,0.7,193.96,193.92,2.55761997]
[1761369208557,0.7,193.96,193.93,35.98]
[1761369210163,0.7,193.96,193.94,35.98]
[1761369211247,0.2,193.97,193.94,35.98]
[1761369211758,0.9,193.97,193.94,35.98]
[1761369212073,0.9,193.97,193.94,38.53761997]
[1761369212255,0.2,193.97,193.94,43.6937848]
[1761369212562,0.2,193.97,193.95,2.55761997]
[1761369212765,0.2,193.97,193.96,35.96]
[1761369213486,0.9,193.97,193.96,35.96]
[1761369214667,0.2,193.97,193.96,35.96]
[1761369222183,0.9,193.97,193.96,35.96]
[1761369223772,0.2,193.97,193.96,35.96]
[1761369224388,0.2,193.97,193.95,1.63396585]
[1761369224581,0.2,193.97,193.96,35.92]
[1761369225280,0.9,193.97,193.96,35.92]
[1761369225880,0.2,193.97,193.96,35.92]
[1761369227774,0.9,193.97,193.96,35.92]
[1761369228084,0.2,193.97,193.96,35.92]
[1761369230783,0.2,193.97,193.95,1.63396585]
[1761369230989,0.2,193.97,193.96,35.9]
[1761369231193,0.86,193.97,193.96,35.9]
[1761369233880,0.2,193.97,193.96,35.9]
[1761369234787,0.2,193.97,193.95,1.63396585]
[1761369235587,0.2,193.97,193.96,35.88]
[1761369237493,0.86,193.97,193.96,35.88]
[1761369238192,0.2,193.97,193.96,35.88]
[1761369240600,0.86,193.97,193.96,35.88]
[1761369243297,0.2,193.97,193.96,37.51396585]
[1761369243496,0.2,193.97,193.96,38.21396585]
[1761369243681,0.2,193.97,193.96,37.51396585]
[1761369246183,0.2,193.97,193.96,1.63396585]
[1761369246397,0.2,193.97,193.96,37.49396585]
[1761369247798,0.2,193.97,193.96,37.47396585]
[1761369247989,0.2,193.97,193.96,1.63396585]
[1761369248190,0.2,193.97,193.96,37.47396585]
[1761369248598,0.2,193.97,193.96,1.63396585]
[1761369248809,0.2,193.97,193.96,37.47396585]
[1761369250898,0.2,193.97,193.96,1.63396585]
[1761369251191,0.2,193.97,193.96,37.47396585]
[1761369253105,0.2,193.97,193.96,1.63396585]
[1761369253287,0.2,193.97,193.96,37.47396585]
[1761369254009,0.2,193.97,193.96,1.63396585]
[1761369254187,0.2,193.97,193.96,37.45396585]
[1761369255606,0.2,193.97,193.96,35.82]
[1761369257903,0.2,193.97,193.95,6.78993283]
[1761369258110,0.2,193.97,193.96,35.82]
[1761369259695,0.2,193.97,193.96,42.60966805]
[1761369261117,0.2,193.97,193.96,6.78966805]
[1761369261298,0.2,193.97,193.96,42.60966805]
[1761369261695,0.2,193.97,193.96,6.78966805]
[1761369261916,0.2,193.97,193.96,42.60966805]
[1761369271226,0.91,193.97,193.96,42.60966805]
[1761369271414,0.91,193.97,193.96,40.9757022]
[1761369274712,0.91,193.97,193.92,1.63396585]
[1761369274918,0.71,193.96,193.93,37.45396585]
[1761369275629,7.69890224,193.96,193.93,37.45396585]
[1761369276024,0.71,193.96,193.93,42.61023583]
[1761369276328,0.71,193.95,193.93,42.61023583]
[1761369278734,0.71,193.95,193.93,43.52997043]
[1761369281732,0.71,193.95,193.94,35.82]
[1761369282034,0.71,193.95,193.94,40.97623388]
[1761369283825,0.71,193.96,193.94,40.97623388]
[1761369284713,0.71,193.96,193.94,43.52993433]
[1761369291339,0.2,193.97,193.95,3.26370045]
[1761369291521,0.2,193.97,193.96,38.37370045]
[1761369291729,0.2,193.97,193.96,39.08370045]
[1761369292227,0.2,193.97,193.96,38.37370045]
[1761369293350,0.2,193.97,193.96,39.08370045]
[1761369294036,0.2,193.97,193.96,44.23940265]
[1761369301533,0.2,193.97,193.96,5.1557022]
[1761369301847,0.92,193.97,193.96,43.52940265]
[1761369302040,0.92,193.97,193.96,7.70940265]
[1761369302238,0.92,193.97,193.96,43.52940265]
[1761369304982,0.92,193.97,193.96,5.1557022]
[1761369305256,0.92,193.97,193.96,40.9557022]
[1761369305642,0.92,193.97,193.96,5.1557022]
[1761369305844,0.92,193.97,193.96,40.9557022]
[1761369306251,0.2,193.97,193.96,43.50940265]
[1761369306459,0.92,193.97,193.96,43.50940265]
[1761369309373,0.2,193.97,193.96,43.50940265]
[1761369309581,0.92,193.97,193.96,43.50940265]
[1761369310878,0.2,193.97,193.96,43.50940265]
[1761369311583,0.92,193.97,193.96,43.50940265]
[1761369311791,0.92,193.97,193.96,40.9557022]
[1761369314059,0.92,193.97,193.95,5.15596803]
[1761369314379,0.92,193.97,193.96,35.8]
[1761369316494,0.92,193.97,193.96,40.9557022]
[1761369318671,0.2,193.97,193.96,40.9557022]
[1761369318985,0.2,193.97,193.96,5.1557022]
[1761369319286,0.92,193.97,193.96,40.9557022]
[1761369319990,0.92,193.97,193.96,43.50940265]
[1761369322480,0.92,193.97,193.94,2.55370045]
[1761369322680,0.68,193.96,193.93,2.55370045]
[1761369322871,0.68,193.96,193.95,35.8]
[1761369327487,0.68,193.96,193.92,5.15676567]
[1761369327675,0.68,193.96,193.93,35.8]
[1761369327875,8.38890217,193.96,193.93,35.8]
[1761369328378,0.68,193.95,193.93,35.8]
[1761369328887,0.68,193.95,193.94,35.8]
[1761369329894,0.68,193.95,193.91,20.60296526]
[1761369330072,0.68,193.95,193.92,40.95660005]
[1761369331184,0.68,193.95,193.92,5.15660005]
[1761369331389,0.68,193.95,193.93,40.95638386]
[1761369331703,0.68,193.95,193.94,35.8]
[1761369340213,0.68,193.95,193.9,9.34342299]
[1761369340410,0.68,193.95,193.91,35.8]
[1761369341325,7.47054864,193.95,193.9,5.1571075]
[1761369341515,1.63452082,193.94,193.91,35.8]
[1761369341718,17.80358811,193.94,193.91,35.8]
[1761369342034,0.68,193.93,193.91,35.8]
[1761369342809,0.68,193.93,193.88,35.8]
[1761369342810,1.63452082,193.92,193.88,35.8]
[1761369343322,0.68,193.91,193.88,35.8]
[1761369343708,15.48986704,193.92,193.89,0.72]
[1761369344031,0.68,193.92,193.89,0.72]
[1761369345607,0.68,193.92,193.89,5.87754733]
[1761369345811,0.68,193.92,193.89,7.51206815]
[1761369346436,16.16986704,193.93,193.89,7.51206815]
[1761369346615,0.88,193.97,193.92,1.63452082]
[1761369346818,0.2,193.97,193.94,1.63452082]
[1761369347125,0.88,193.97,193.94,1.63452082]
[1761369347338,0.88,193.97,193.93,2.35452082]
[1761369347630,0.2,193.97,193.93,5.87641853]
[1761369347819,0.68,193.96,193.93,7.51093935]
[1761369348001,0.68,193.96,193.93,21.36228767]
[1761369348406,0.68,193.96,193.93,5.87641853]
[1761369348623,0.68,193.96,193.93,5.15641853]
[1761369348826,0.68,193.96,193.94,5.15523314]
[1761369351743,0.86,193.97,193.94,5.15523314]
[1761369352236,0.2,193.97,193.94,5.15523314]
[1761369352453,0.66,193.96,193.94,5.15523314]
[1761369353233,0.2,193.97,193.94,5.15523314]
[1761369353441,0.66,193.96,193.94,5.15523314]
[1761369354531,0.2,193.97,193.94,5.15523314]
[1761369354732,0.86,193.97,193.94,5.15523314]
[1761369356117,0.66,193.96,193.94,5.15523314]
[1761369356428,0.66,193.96,193.93,6.79093935]
[1761369356735,0.66,193.96,193.93,5.15523314]
[1761369357741,0.66,193.96,193.92,42.59122729]
[1761369358043,0.66,193.96,193.92,14.25098125]
[1761369358234,0.66,193.96,193.92,41.62670647]
[1761369358438,0.66,193.96,193.92,46.98218716]
[1761369358828,0.66,193.96,193.92,5.82670647]
[1761369359139,0.66,193.96,193.92,41.62670647]
[1761369359332,0.66,193.96,193.92,43.26122729]
[1761369359730,0.66,193.96,193.92,50.2512288]
[1761369361743,0.66,193.96,193.93,1.63452082]
[1761369362146,0.66,193.96,193.93,6.79098934]
[1761369364534,0.66,193.96,193.93,5.15646852]
[1761369364733,0.66,193.96,193.92,43.29123241]
[1761369365541,0.66,193.96,193.92,41.65671159]
[1761369365746,0.66,193.96,193.92,43.29123241]
[1761369366756,0.66,193.96,193.93,12.34550169]
[1761369369235,0.66,193.96,193.93,13.98002251]
[1761369369730,0.66,193.96,193.93,1.63452082]
[1761369369930,0.66,193.96,193.94,5.35550018]
[1761369370848,0.66,193.96,193.94,10.51172691]
[1761369371044,0.2,193.97,193.95,38.11452082]
[1761369371226,0.2,193.97,193.96,1.63452082]
[1761369371548,0.2,193.97,193.96,4.39898367]
[1761369371921,0.2,193.97,193.96,9.55468587]
[1761369373830,0.2,193.97,193.96,7.92016505]
[1761369374030,0.2,193.97,193.96,9.55468587]
[1761369376855,0.2,193.97,193.96,20.43116108]
[1761369377246,0.2,193.97,193.96,18.79664026]
[1761369377451,0.2,193.97,193.96,20.43116108]
[1761369380852,0.2,193.97,193.96,7.92016505]
[1761369381063,0.2,193.97,193.96,45.33468587]
[1761369384263,0.2,193.97,193.96,56.21116108]
[1761369389562,0.85,193.97,193.96,2.06446285]
[1761369389751,0.85,193.97,193.95,35.78]
[1761369389947,0.65,193.96,193.95,37.41452082]
[1761369390450,0.2,193.97,193.95,37.41452082]
[1761369390652,0.85,193.97,193.95,37.41452082]
[1761369390868,0.85,193.97,193.95,42.57036612]
[1761369391160,0.85,193.97,193.96,1.63452082]
[1761369391366,0.85,193.97,193.95,40.9358453]
[1761369391555,0.85,193.97,193.96,1.63452082]
[1761369393454,0.85,193.97,193.95,42.57036612]
[1761369395671,0.65,193.96,193.95,42.57036612]
[1761369396786,0.2,193.97,193.95,42.57036612]
[1761369396975,0.85,193.97,193.95,42.57036612]
[1761369397564,0.85,193.97,193.96,35.78]
[1761369400471,2.48452082,193.97,193.93,35.78]
[1761369400646,0.65,193.96,193.93,35.78]
[1761369401048,0.65,193.96,193.94,35.78]
[1761369402676,3.20398318,193.96,193.94,35.78]
[1761369404157,3.20398318,193.95,193.92,5.15669906]
[1761369404356,3.20398318,193.95,193.92,40.93669906]
[1761369404555,3.20398318,193.94,193.89,5.15669906]
[1761369404775,3.20398318,193.94,193.9,35.78]
[1761369405081,0.65,193.93,193.9,35.78]
[1761369405783,0.65,193.93,193.9,40.93704672]
[1761369410189,0.65,193.93,193.89,5.15756356]
[1761369410383,0.65,193.93,193.9,35.78]
[1761369411686,3.20398318,193.93,193.89,5.15756356]
[1761369411888,2.55398318,193.92,193.89,40.93756356]
[1761369412065,3.21398318,193.92,193.89,40.93756356]
[1761369412267,0.66,193.91,193.89,40.93756356]
[1761369412891,0.66,193.91,193.86,21.32565297]
[1761369413065,0.66,193.91,193.87,40.93809563]
[1761369413385,0.66,193.91,193.87,44.21207881]
[1761369413780,0.66,193.91,193.87,8.43207881]
[1761369413970,0.66,193.91,193.88,40.93763308]
[1761369414483,0.66,193.91,193.88,5.15763308]
[1761369414789,0.66,193.91,193.89,35.78]
[1761369415275,2.55398318,193.94,193.89,35.78]
[1761369415489,0.66,193.92,193.89,38.33398318]
[1761369416464,0.66,193.92,193.89,7.71131741]
[1761369416667,0.66,193.92,193.89,43.49131741]
[1761369431000,0.66,193.92,193.89,7.71131741]
[1761369431177,0.66,193.92,193.89,43.47131741]
[1761369431497,0.66,193.92,193.89,7.71131741]
[1761369431694,0.66,193.92,193.89,43.47131741]
[1761369432492,0.66,193.92,193.89,7.71131741]
[1761369432702,0.66,193.92,193.9,40.91723707]
[1761369434485,0.66,193.92,193.9,35.76]
[1761369434883,0.66,193.92,193.89,5.15750235]
[1761369435200,0.66,193.92,193.89,40.91750235]
[1761369437801,0.66,193.92,193.88,5.15778186]
[1761369437999,8.37076981,193.92,193.88,35.76]
[1761369438390,0.72,193.91,193.88,35.76]
[1761369439094,0.72,193.91,193.87,7.7120437]
[1761369439293,0.72,193.91,193.87,43.4720437]
[1761369439601,0.72,193.91,193.87,40.91806052]
[1761369441711,0.72,193.91,193.87,5.15806052]
[1761369441880,5.87705857,193.91,193.86,43.47233398]
[1761369442083,0.67,193.9,193.86,43.47233398]
[1761369447109,7.71052768,193.93,193.87,3.26398318]
[1761369447299,0.67,193.92,193.87,0.71]
[1761369447507,0.67,193.92,193.88,2.55398318]
[1761369447905,0.67,193.92,193.88,7.71180058]
[1761369448901,8.38078535,193.92,193.87,40.91804315]
[1761369449115,8.38078535,193.92,193.87,43.47202633]
[1761369449328,5.15680217,193.92,193.88,2.55398318]
[1761369449595,0.67,193.91,193.88,2.55398318]
[1761369450115,0.67,193.91,193.88,7.71176412]
[1761369450327,0.67,193.91,193.88,8.42176412]
[1761369450822,0.67,193.91,193.88,7.71176412]
[1761369454843,0.67,193.91,193.88,5.15778094]
[1761369455004,0.67,193.91,193.88,7.71176412]
[1761369462731,0.67,193.91,193.88,1.63525951]
[1761369463120,0.67,193.94,193.9,1.63525951]
[1761369463323,23.55,193.94,193.92,1.63525951]
[1761369463505,0.67,193.94,193.91,1.63525951]
[1761369463707,0.67,193.93,193.91,1.63525951]
[1761369464333,5.15575432,193.96,193.9,1.63525951]
[1761369464632,0.67,193.94,193.91,5.15703161]
[1761369470534,24.51525951,193.95,193.91,0.67]
[1761369470717,23.59,193.95,193.91,0.67]
[1761369470920,0.71,193.94,193.91,0.67]
[1761369471936,1.63525951,193.96,193.92,5.15676567]
[1761369472126,0.71,193.95,193.92,5.15676567]
[1761369476415,0.71,193.95,193.91,5.15703161]
[1761369477244,0.71,193.95,193.91,6.79229112]
[1761369477538,0.71,193.95,193.91,5.15703161]
[1761369479245,7.50130881,193.95,193.89,37.39525951]
[1761369479423,7.50130881,193.95,193.89,38.07525951]
[1761369479623,0.68,193.94,193.89,38.07525951]
[1761369480223,0.68,193.94,193.9,0.68]
[1761369480424,0.68,193.94,193.88,1.63525951]
[1761369480425,7.47162291,193.94,193.88,1.63525951]
[1761369480728,1.63525951,193.93,193.87,38.05525951]
[1761369480929,0.68,193.93,193.87,38.05525951]
[1761369481241,0.68,193.92,193.88,1.63525951]
[1761369481423,0.68,193.92,193.88,6.79302872]
[1761369483759,0.68,193.92,193.88,5.15776921]
[1761369484851,2.31525951,193.92,193.88,5.15776921]
[1761369485230,0.68,193.91,193.88,5.15776921]
[1761369486352,0.68,193.91,193.87,5.15809563]
[1761369487738,0.68,193.91,193.87,6.79335514]
[1761369489552,0.68,193.91,193.88,1.63525951]
[1761369489733,0.68,193.91,193.89,5.15756356]
[1761369490950,1.63525951,193.94,193.89,5.15756356]
[1761369491247,65.41120713,193.96,193.9,2.31525951]
[1761369491453,0.68,193.94,193.91,1.63525951]
[1761369498567,0.68,193.94,193.91,7.47228118]
[1761369498765,0.68,193.94,193.92,1.63525951]
[1761369498946,0.68,193.94,193.91,7.47228118]
[1761369499848,0.7,193.95,193.91,7.46228118]
[1761369500660,0.2,193.97,193.94,1.63525951]
[1761369500868,0.7,193.95,193.94,1.63525951]
[1761369501242,0.7,193.95,193.93,1.63525951]
[1761369502367,0.7,193.95,193.93,6.79170505]
[1761369505964,0.9,193.97,193.94,1.63525951]
[1761369506466,0.7,193.96,193.94,1.63525951]
[1761369508177,0.7,193.96,193.93,5.15644554]
[1761369508479,0.7,193.96,193.94,1.63525951]
[1761369508682,0.7,193.96,193.93,6.79170505]
[1761369511668,0.7,193.96,193.94,1.63525951]
[1761369513475,0.7,193.96,193.93,18.04769495]
[1761369513670,0.7,193.96,193.94,6.7914467]
[1761369514978,0.7,193.96,193.94,5.15618719]
[1761369516392,2.33525951,193.96,193.91,6.79207268]
[1761369516886,0.7,193.95,193.91,6.79207268]
[1761369517670,2.33525951,193.95,193.9,7.22223735]
[1761369517880,2.33525951,193.95,193.9,6.79250112]
[1761369518105,0.7,193.94,193.9,6.79250112]
[1761369518588,0.7,193.94,193.9,7.46250112]
[1761369518778,0.7,193.94,193.9,6.79250112]
[1761369519988,0.7,193.94,193.89,18.05143143]
[1761369520190,2.33525951,193.94,193.89,20.35669094]
[1761369520787,0.7,193.93,193.89,20.35669094]
[1761369522670,0.7,193.93,193.89,21.27615051]
[1761369531102,0.7,193.93,193.9,3.27471908]
[1761369531305,0.7,193.93,193.9,7.71176746]
[1761369536597,0.7,193.93,193.9,8.43176746]
[1761369537404,2.55471908,193.95,193.9,8.43176746]
[1761369537596,0.72,193.94,193.9,8.43176746]
[1761369537904,0.72,193.94,193.9,5.87704838]
[1761369538100,0.72,193.94,193.9,8.43176746]
[1761369538296,0.72,193.94,193.9,7.71176746]
[1761369538497,49.32,193.94,193.9,7.71176746]
[1761369538702,0.72,193.94,193.9,7.71176746]
[1761369538906,0.66,193.93,193.9,7.71176746]
[1761369539511,0.66,193.94,193.9,8.41176746]
[1761369541584,0.66,193.96,193.91,3.25471908]
[1761369541792,0.66,193.96,193.92,2.55471908]
[1761369541984,0.2,193.97,193.92,3.25471908]
[1761369542189,0.86,193.97,193.93,3.25471908]
[1761369543023,0.86,193.97,193.93,5.85634845]
[1761369543246,0.2,193.97,193.96,13.43119429]
[1761369543742,0.2,193.97,193.96,14.13119429]
[1761369544206,0.2,193.97,193.96,49.85119429]
[1761369545528,0.2,193.97,193.96,55.00689649]
[1761369552437,0.2,193.97,193.96,55.52246671]
[1761369553039,0.2,193.97,193.96,55.00689649]
[1761369554636,0.2,193.97,193.96,19.28689649]
[1761369554841,0.2,193.97,193.96,54.98689649]
[1761369558133,0.2,193.97,193.96,19.28689649]
[1761369558335,0.2,193.97,193.96,18.58689649]
[1761369558534,0.2,193.97,193.96,54.28689649]
[1761369559053,0.2,193.97,193.96,54.98689649]
[1761369563755,0.2,193.97,193.96,51.73217741]
[1761369563959,0.2,193.97,193.96,54.94689649]
[1761369564138,0.2,193.97,193.96,19.24689649]
[1761369564342,0.2,193.97,193.96,54.94689649]
[1761369567440,0.2,193.97,193.96,16.69217741]
[1761369567660,0.2,193.97,193.96,54.94689649]
[1761369570963,0.2,193.97,193.96,54.28689649]
[1761369572244,0.2,193.97,193.96,54.94689649]
[1761369574469,0.2,193.97,193.96,54.28689649]
[1761369582689,0.2,193.97,193.96,53.3653545]
[1761369583881,0.2,193.97,193.96,54.0253545]
[1761369589597,0.2,193.97,193.96,53.3653545]
[1761369596716,0.2,193.97,193.96,54.0253545]
[1761369597210,0.2,193.97,193.96,53.3653545]
[1761369597887,0.2,193.97,193.96,17.6653545]
[1761369598112,0.2,193.97,193.96,53.3453545]
[1761369600611,0.2,193.97,193.96,17.6653545]
[1761369600909,0.2,193.97,193.96,53.3453545]
[1761369601808,0.2,193.97,193.96,17.6653545]
[1761369602011,0.2,193.97,193.96,53.3453545]
[1761369603312,0.2,193.97,193.96,17.6653545]
[1761369603618,0.2,193.97,193.96,53.3453545]
[1761369605515,0.89,193.97,193.96,53.3453545]
[1761369605812,0.2,193.97,193.96,53.3453545]
[1761369608318,0.2,193.97,193.96,17.6653545]
[1761369608515,0.2,193.97,193.96,53.3453545]
[1761369609807,0.89,193.97,193.96,53.3453545]
[1761369611317,0.89,193.97,193.96,17.6653545]
[1761369611618,0.89,193.97,193.96,53.3453545]
[1761369611919,0.89,193.97,193.96,6.78887929]
[1761369618026,0.2,193.97,193.96,53.3453545]
[1761369627739,0.2,193.97,193.96,68.82642888]
[1761369629333,0.2,193.97,193.96,69.48642888]
[1761369630122,0.2,193.97,193.96,68.82642888]
[1761369630832,0.2,193.97,193.96,68.80642888]
[1761369633127,0.2,193.97,193.96,69.9819991]
[1761369634527,0.2,193.97,193.96,92.8619991]
[1761369635820,0.2,193.99,193.96,82.87125461]
[1761369636133,0.2,194.08,193.98,35.3896523]
[1761369636322,0.68,194.03,194.0,10.87647521]
[1761369636518,0.68,194.03,194.01,35.66]
[1761369636936,0.68,194.03,194.02,5.15410782]
[1761369637556,0.68,194.05,194.02,19.67255446]
[1761369637733,0.68,194.05,194.04,1.63317709]
[1761369639127,0.68,194.05,194.04,6.78675367]
[1761369641823,0.2,194.08,194.04,6.78675367]
[1761369642024,0.68,194.07,194.05,35.66]
[1761369643057,0.68,194.07,194.06,1.63317709]
[1761369643655,0.68,194.07,194.06,6.78622253]
[1761369644735,0.68,194.07,194.06,7.70315522]
[1761369652356,0.68,194.07,194.05,43.36336296]
[1761369654145,0.68,194.07,194.05,38.21010978]
[1761369654455,0.68,194.07,194.05,35.66]
[1761369655255,0.68,194.07,194.05,35.64]
[1761369655556,0.68,194.07,194.05,38.19010978]
[1761369655935,0.68,194.07,194.05,35.64]
[1761369656462,0.68,194.07,194.05,43.34335541]
[1761369656836,0.68,194.07,194.05,7.70335541]
[1761369657036,0.68,194.07,194.05,43.34335541]
[1761369658435,0.68,194.07,194.05,38.19010978]
[1761369660462,0.68,194.07,194.05,43.34331644]
[1761369662460,0.68,194.07,194.05,7.70331644]
[1761369662657,0.68,194.07,194.05,43.34331644]
[1761369663336,0.68,194.07,194.06,2.55010978]
[1761369664974,0.2,194.08,194.06,7.70315522]
[1761369665146,0.87,194.08,194.07,2.55010978]
[1761369666765,16.34548425,194.08,194.07,2.55010978]
[1761369668356,16.34548425,194.08,194.06,7.70315522]
[1761369668554,0.67,194.07,194.06,7.70315522]
[1761369669057,16.14548425,194.07,194.06,7.70315522]
[1761369670575,15.47548425,194.07,194.05,12.41184334]
[1761369670756,0.67,194.06,194.05,14.96195312]
[1761369671378,14.96195312,194.06,194.05,2.55010978]
[1761369671743,0.67,194.07,194.05,2.55010978]
[1761369671943,11.54647521,194.07,194.05,2.55010978]
[1761369672469,11.54647521,194.07,194.05,7.70342078]
[1761369673174,10.87647521,194.07,194.06,7.70315522]
[1761369673355,0.2,194.08,194.06,7.70315522]
[1761369673567,11.07647521,194.08,194.07,2.55010978]
[1761369674372,11.07647521,194.08,194.07,7.7028897]
[1761369676281,11.74647521,194.08,194.06,5.15304544]
[1761369676466,11.07647521,194.08,194.07,2.55010978]
[1761369676977,11.74647521,194.08,194.07,2.55010978]
[1761369677172,11.07647521,194.08,194.07,2.55010978]
[1761369677771,0.2,194.08,194.07,49.78658499]
[1761369678276,0.2,194.08,194.07,54.93936491]
[1761369683788,0.2,194.08,194.07,77.81936491]
[1761369684487,0.2,194.08,194.07,78.3346429]
[1761369688188,0.2,194.12,194.11,33.75647521]
[1761369688485,0.2,194.15,194.11,72.44175679]
[1761369688691,0.2,194.15,194.14,13.42658499]
[1761369688886,0.2,194.15,194.14,49.56167719]
[1761369689078,0.2,194.15,194.14,50.28167719]
[1761369690071,0.2,194.15,194.14,55.4325992]
[1761369692671,0.2,194.15,194.14,78.3125992]
[1761369692875,0.2,194.15,194.14,55.4325992]
[1761369692876,1e-08,194.15,194.14,55.4325992]
[1761369693812,0.7,194.2,194.15,33.75647521]
[1761369694106,0.7,194.2,194.15,37.02658499]
[1761369694888,0.7,194.2,194.15,42.17724169]
[1761369695067,0.7,194.22,194.15,42.17724169]
[1761369695272,0.7,194.21,194.15,42.17724169]
[1761369696096,0.7,194.2,194.15,42.17724169]
[1761369697183,0.7,194.18,194.15,77.07724169]
[1761369697990,0.7,194.18,194.15,77.79724169]
[1761369698175,0.7,194.19,194.15,78.31230736]
[1761369699202,2.06190881,194.23,194.15,78.31230736]
[1761369699494,0.7,194.2,194.15,78.31230736]
[1761369700203,0.7,194.19,194.15,78.31230736]
[1761369701811,2.06190881,194.23,194.15,78.31230736]
[1761369702096,0.7,194.19,194.15,78.29230736]
[1761369703606,2.06169626,194.23,194.15,39.42219758]
[1761369703811,0.7,194.18,194.15,77.57230736]
[1761369706698,0.7,194.18,194.15,76.65199089]
[1761369712600,0.9,194.16,194.15,40.53692522]
[1761369712789,0.2,194.16,194.15,76.13692522]
[1761369719806,0.2,194.16,194.15,53.25692522]
[1761369720011,0.2,194.16,194.15,53.77199089]
[1761369720502,0.2,194.16,194.15,16.54219758]
[1761369720805,0.2,194.16,194.15,54.45199089]
[1761369722703,0.2,194.16,194.15,16.54219758]
[1761369722891,0.2,194.16,194.15,54.45199089]
[1761369725610,0.2,194.16,194.15,18.17199089]
[1761369725807,0.2,194.16,194.15,53.77199089]
[1761369729696,0.2,194.16,194.15,18.17199089]
[1761369729898,0.2,194.16,194.15,53.77199089]
[1761369730096,0.2,194.16,194.15,18.17199089]
[1761369730515,0.2,194.16,194.15,53.77199089]
[1761369734408,0.2,194.16,194.15,18.17199089]
[1761369734609,0.2,194.16,194.15,53.77199089]
[1761369734920,0.2,194.17,194.15,53.77199089]
[1761369735108,0.2,194.17,194.16,12.50626852]
[1761369735511,0.92,194.17,194.16,10.87647521]
[1761369735708,0.2,194.17,194.16,48.10626852]
[1761369736109,0.92,194.17,194.16,48.10626852]
[1761369737209,0.92,194.17,194.16,53.25665994]
[1761369737615,0.92,194.17,194.16,6.78018473]
[1761369737910,0.92,194.17,194.16,53.25665994]
[1761369741323,0.2,194.17,194.16,53.25665994]
[1761369742002,0.9,194.17,194.16,53.25665994]
[1761369750834,0.2,194.17,194.16,53.25665994]
[1761369751032,0.2,194.17,194.16,53.92665994]
[1761369751236,0.2,194.17,194.16,53.25665994]
[1761369752140,1e-08,194.17,194.16,53.25665994]
[1761369752437,0.7,194.19,194.16,53.25665994]
[1761369752438,0.7,194.25,194.2,33.75647521]
[1761369752635,0.7,194.26,194.24,1.62979331]
[1761369752837,0.7,194.26,194.25,37.22979331]
[1761369753553,0.7,194.26,194.25,42.37779845]
[1761369756346,0.7,194.26,194.25,53.25427366]
[1761369760435,0.2,194.27,194.26,10.87647521]
[1761369760636,0.2,194.27,194.26,12.50626852]
[1761369760931,0.9,194.27,194.26,12.50626852]
[1761369761641,0.9,194.27,194.26,17.65400866]
[1761369766735,0.9,194.27,194.26,18.56874292]
[1761369769332,0.9,194.27,194.26,54.14874292]
[1761369773267,0.9,194.27,194.26,51.60421535]
[1761369773472,0.9,194.27,194.26,54.14874292]
[1761369776367,0.9,194.27,194.26,51.60421535]